bitfinex/quotes_BTCUSD_20250328
["timestamp","ask_amount","ask_price","bid_price","bid_amount"]
[1743137920851,0.07015112,86361.0,86360.0,0.2056252]
[1743137921056,0.07076181,86361.0,86360.0,0.14271891]
[1743137921452,0.14846181,86361.0,86360.0,0.13113991]
[1743137921942,0.14846181,86361.0,86360.0,0.14271891]
[1743137922470,0.33798181,86361.0,86360.0,0.13113991]
[1743137923101,0.63798181,86361.0,86360.0,0.13113991]
[1743137923674,0.63798181,86361.0,86360.0,0.14532337]
[1743137923896,0.63798181,86361.0,86360.0,0.13113991]
[1743137924678,0.44846181,86361.0,86360.0,0.13113991]
[1743137924880,0.63794181,86361.0,86360.0,0.13113991]
[1743137925288,0.44846181,86361.0,86360.0,0.13113991]
[1743137925502,0.63794181,86361.0,86360.0,0.1465697]
[1743137925939,0.63794181,86361.0,86360.0,0.1561487]
[1743137926584,0.63794181,86361.0,86360.0,0.1445697]
[1743137926993,0.63794181,86361.0,86360.0,0.12913991]
[1743137927174,0.63828021,86361.0,86360.0,0.12913991]
[1743137927491,0.63828021,86361.0,86360.0,0.37230691]
[1743137927717,0.65644624,86361.0,86360.0,0.37230691]
[1743137927961,0.65644624,86361.0,86360.0,0.12913991]
[1743137928359,0.65644624,86361.0,86360.0,0.14071891]
[1743137928565,0.65583555,86361.0,86360.0,0.2289007]
[1743137928696,0.65644624,86361.0,86360.0,0.2289007]
[1743137929108,0.65583555,86361.0,86360.0,0.2289007]
[1743137929311,0.65644624,86361.0,86360.0,0.14071891]
[1743137929741,0.53184624,86361.0,86360.0,0.14071891]
[1743137929941,0.53284624,86361.0,86360.0,0.15525976]
[1743137930152,0.53184624,86361.0,86360.0,0.15525976]
[1743137930359,0.34236624,86361.0,86360.0,0.15525976]
[1743137930514,0.34336624,86361.0,86360.0,0.15625976]
[1743137930710,0.34236624,86361.0,86360.0,0.13013991]
[1743137930964,0.34236624,86361.0,86360.0,0.14171891]
[1743137931165,0.34236624,86361.0,86360.0,0.14071891]
[1743137931368,0.34175555,86361.0,86360.0,0.14071891]
[1743137931596,0.34175555,86361.0,86360.0,0.14371891]
[1743137931911,0.34175555,86361.0,86360.0,0.20518594]
[1743137932120,0.04175555,86361.0,86360.0,0.15825976]
[1743137932529,0.01850443,86361.0,86360.0,0.15825976]
[1743137932750,0.00261069,86369.0,86368.0,0.231567]
[1743137932955,0.00261069,86369.0,86368.0,0.243145]
[1743137933347,0.02608562,86369.0,86368.0,0.243145]
[1743137933549,0.02547493,86369.0,86368.0,0.3172483]
[1743137933991,0.02608562,86369.0,86368.0,0.3172483]
[1743137934196,0.02547493,86369.0,86368.0,0.33178915]
[1743137934407,0.02547493,86369.0,86368.0,0.41917351]
[1743137935257,0.002,86369.0,86368.0,0.42117351]
[1743137936828,0.002,86369.0,86368.0,0.53543115]
[1743137937095,0.002,86369.0,86368.0,0.53443115]
[1743137937483,0.002,86369.0,86368.0,0.53943115]
[1743137937888,0.002,86369.0,86368.0,0.53443115]
[1743137938307,0.0003382,86377.0,86376.0,0.24161365]
[1743137938548,0.0003382,86377.0,86376.0,0.39457351]
[1743137939619,0.0003382,86377.0,86376.0,0.39557351]
[1743137940019,0.0003382,86377.0,86376.0,0.39857351]
[1743137940357,0.0003382,86377.0,86376.0,1.09237351]
[1743137940481,0.0003382,86377.0,86376.0,1.08937351]
[1743137941408,0.0003382,86377.0,86376.0,1.08437351]
[1743137941936,0.0003382,86377.0,86376.0,1.08337351]
[1743137942229,0.0003382,86377.0,86376.0,0.93141365]
[1743137943025,0.0003382,86377.0,86376.0,0.93741365]
[1743137943572,0.0003382,86377.0,86376.0,0.9519545]
[1743137944410,0.01849917,86377.0,86376.0,0.9519545]
[1743137945016,0.01849917,86377.0,86376.0,1.5031945]
[1743137945198,0.00061069,86382.0,86381.0,0.011576]
[1743137945398,0.00061069,86382.0,86381.0,0.08373926]
[1743137945642,0.00061069,86383.0,86382.0,0.243105]
[1743137945843,0.00061069,86383.0,86382.0,0.231529]
[1743137946842,0.00061069,86382.0,86381.0,0.07216326]
[1743137948168,0.00061069,86382.0,86381.0,0.07316326]
[1743137948563,0.18977069,86382.0,86381.0,0.30469526]
[1743137948773,0.18977069,86382.0,86381.0,0.31627126]
[1743137949383,0.18977069,86382.0,86381.0,0.31527126]
[1743137949786,0.18977069,86382.0,86381.0,0.31627126]
[1743137949990,0.18977069,86382.0,86381.0,0.35413522]
[1743137950187,0.18977069,86382.0,86381.0,0.31527126]
[1743137950594,0.18977069,86382.0,86381.0,0.31627126]
[1743137950794,0.32325618,86389.0,86388.0,0.011575]
[1743137950991,0.51189887,86389.0,86388.0,0.0497772]
[1743137951219,0.51250956,86389.0,86388.0,0.07216326]
[1743137952067,0.32338956,86389.0,86388.0,0.07216326]
[1743137952269,0.51246956,86389.0,86388.0,0.08373826]
[1743137952474,0.32338956,86389.0,86388.0,0.08373826]
[1743137952671,0.21246956,86389.0,86388.0,0.08373826]
[1743137953083,0.21246956,86389.0,86388.0,0.08473826]
[1743137955658,0.21242956,86389.0,86388.0,0.08473826]
[1743137955893,0.02277887,86389.0,86388.0,0.09927911]
[1743137956337,0.02338956,86389.0,86388.0,0.09927911]
[1743137956571,0.02277887,86389.0,86388.0,0.09927911]
[1743137956828,0.02277887,86389.0,86388.0,0.09827911]
[1743137957078,0.02277887,86389.0,86388.0,0.15988342]
[1743137958062,0.02277887,86389.0,86388.0,0.10027911]
[1743137958297,0.02277887,86389.0,86388.0,0.29143675]
[1743137958724,0.00013338,86389.0,86388.0,0.29143675]
[1743137959244,0.00013338,86389.0,86388.0,0.28943675]
[1743137959455,0.00013338,86389.0,86388.0,0.29243675]
[1743137959588,0.00013338,86389.0,86388.0,0.37195683]
[1743137959793,0.00013338,86389.0,86388.0,0.36895683]
[1743137960052,0.01815715,86406.0,86405.0,0.24153316]
[1743137960302,0.01876784,86406.0,86405.0,0.32576589]
[1743137960533,0.20772784,86406.0,86405.0,0.06969188]
[1743137960793,0.01815715,86406.0,86405.0,0.09580573]
[1743137961017,0.00061069,86411.0,86408.0,0.25757385]
[1743137961246,0.10281456,86409.0,86408.0,0.25757385]
[1743137962212,0.12544548,86409.0,86408.0,0.25757385]
[1743137962464,0.12483479,86409.0,86408.0,0.37183149]
[1743137962722,0.10220387,86409.0,86408.0,1.25178913]
[1743137962919,0.0003378,86417.0,86416.0,0.25754985]
[1743137963255,0.00047115,86417.0,86416.0,0.37180749]
[1743137964168,0.00047115,86417.0,86416.0,0.37280749]
[1743137964778,0.00047115,86417.0,86416.0,0.37880749]
[1743137964983,0.00047115,86417.0,86416.0,0.26454985]
[1743137965160,0.00047115,86417.0,86416.0,0.26354985]
[1743137965590,0.00047115,86417.0,86416.0,0.26454985]
[1743137965795,0.00061069,86419.0,86418.0,0.25754485]
[1743137965992,0.00061069,86421.0,86420.0,0.02611185]
[1743137966337,0.00061069,86419.0,86418.0,0.231433]
[1743137966544,0.02389014,86425.0,86418.0,0.32418372]
[1743137966752,0.02450083,86425.0,86424.0,0.25752785]
[1743137967576,0.02389014,86425.0,86424.0,0.37178549]
[1743137967892,0.0010551,86425.0,86424.0,0.37178549]
[1743137968049,0.0010551,86425.0,86424.0,0.48604313]
[1743137968429,0.0010551,86425.0,86424.0,0.37178549]
[1743137968748,0.00044441,86425.0,86424.0,0.37178549]
[1743137968931,0.0010551,86425.0,86424.0,0.37178549]
[1743137969336,0.0010551,86425.0,86424.0,0.37478549]
[1743137969565,1e-07,86425.0,86424.0,0.61544313]
[1743137969764,0.02327662,86435.0,86428.0,0.26251685]
[1743137969967,0.1,86460.0,86428.0,0.49103213]
[1743137970145,0.01814997,86443.0,86428.0,0.49103213]
[1743137971246,0.01814997,86443.0,86428.0,0.49503213]
[1743137972271,0.01814997,86443.0,86428.0,0.49103213]
[1743137972629,0.01814997,86443.0,86428.0,0.49003213]
[1743137972782,0.01814997,86443.0,86428.0,0.37577449]
[1743137972990,0.01814997,86443.0,86428.0,0.36123364]
[1743137973209,0.01814997,86443.0,86428.0,0.91215364]
[1743137973606,0.21135604,86446.0,86428.0,0.92669449]
[1743137973811,0.01814834,86430.0,86428.0,1.04095213]
[1743137974054,0.01814834,86430.0,86428.0,1.03695213]
[1743137974269,0.0501384,86448.0,86440.0,0.04907239]
[1743137974270,0.0003384,86448.0,86440.0,0.04907239]
[1743137974414,0.0003384,86448.0,86447.0,0.242922]
[1743137974611,0.00047164,86448.0,86447.0,0.4332291]
[1743137974796,0.00047164,86448.0,86447.0,0.31897146]
[1743137975204,0.00047164,86448.0,86447.0,0.4332291]
[1743137975400,0.00047164,86448.0,86447.0,0.5163291]
[1743137976338,0.0003382,86512.0,86485.0,0.011562]
[1743137976535,0.01160461,86510.0,86485.0,0.92098723]
[1743137976734,0.10013324,86486.0,86485.0,0.56542085]
[1743137977004,0.00013324,86486.0,86485.0,0.66513764]
[1743137977155,0.00013324,86486.0,86485.0,0.83120539]
[1743137977356,0.00013324,86486.0,86485.0,0.59995239]
[1743137978122,0.00013324,86486.0,86485.0,0.83120539]
[1743137978123,0.18873324,86486.0,86485.0,0.83120539]
[1743137978545,0.10220387,86488.0,86487.0,0.011562]
[1743137978737,0.10220387,86488.0,86487.0,0.14036049]
[1743137978955,0.10220387,86488.0,86487.0,0.14536049]
[1743137979173,0.07906629,86488.0,86487.0,0.14536049]
[1743137979387,0.04698111,86488.0,86487.0,0.14036049]
[1743137979593,0.04698111,86488.0,86487.0,0.25461813]
[1743137979786,0.04090816,86510.0,86488.0,0.26234785]
[1743137980008,0.04090816,86510.0,86488.0,0.37660549]
[1743137980499,0.05160401,86517.0,86516.0,0.24122326]
[1743137980735,0.05160401,86517.0,86516.0,0.99229538]
[1743137980937,0.05204798,86517.0,86516.0,0.99229538]
[1743137981263,0.00044397,86517.0,86516.0,0.99229538]
[1743137981929,0.00044397,86517.0,86516.0,0.87803774]
[1743137982134,0.00044397,86517.0,86516.0,0.98320085]
[1743137982419,0.00044397,86517.0,86516.0,0.99475885]
[1743137982630,0.00044397,86517.0,86516.0,1.21437185]
[1743137982838,0.00044397,86517.0,86516.0,0.96866]
[1743137983448,0.18888397,86517.0,86516.0,0.96866]
[1743137984196,0.48888397,86517.0,86516.0,0.96866]
[1743137984398,0.48888397,86517.0,86516.0,0.4179]
[1743137985275,0.30044397,86517.0,86516.0,0.4179]
[1743137985475,0.3,86516.0,86498.0,0.4179]
[1743137985675,0.3,86509.0,86498.0,0.649117]
[1743137985912,0.3,86509.0,86498.0,0.660677]
[1743137986142,0.3,86509.0,86500.0,0.242773]
[1743137986290,0.3,86509.0,86501.0,0.4179]
[1743137987096,0.00044397,86517.0,86504.0,0.01156]
[1743137987275,0.3,86515.0,86505.0,0.01454085]
[1743137987676,0.00044397,86517.0,86516.0,0.1179]
[1743137987889,0.18876397,86517.0,86516.0,0.16966055]
[1743137988284,0.00044397,86517.0,86516.0,0.71337619]
[1743137988485,0.00044397,86517.0,86516.0,0.5358]
[1743137989746,0.00044397,86517.0,86516.0,0.54934085]
[1743137990371,0.00144397,86517.0,86516.0,0.54934085]
[1743137991185,0.00144397,86517.0,86516.0,0.5348]
[1743137991420,0.18972397,86517.0,86516.0,0.5348]
[1743137993628,0.23862397,86517.0,86516.0,0.5348]
[1743137994795,0.23854397,86517.0,86516.0,0.5348]
[1743137995195,0.23854397,86517.0,86516.0,0.1169]
[1743137995869,0.31734397,86517.0,86516.0,0.1169]
[1743137996053,0.31634397,86517.0,86516.0,0.1169]
[1743137996772,0.31834397,86517.0,86516.0,0.1169]
[1743137997208,0.31834397,86517.0,86466.0,0.231302]
[1743137997209,0.3788,86506.0,86477.0,0.4179]
[1743137997418,0.31015696,86487.0,86477.0,0.4179]
[1743137997595,0.31015696,86490.0,86477.0,0.4179]
[1743137997596,0.18816,86486.0,86477.0,0.4179]
[1743137998302,0.00289083,86485.0,86477.0,0.4179]
[1743137998659,0.0181384,86484.0,86477.0,0.41803324]
[1743137998866,0.0028909,86483.0,86477.0,0.41803324]
[1743137999264,0.08,86482.0,86477.0,0.41803324]
[1743137999489,0.00289091,86481.0,86477.0,0.41803324]
[1743137999806,0.02315067,86478.0,86477.0,0.41803324]
[1743138001004,0.02315067,86478.0,86477.0,0.00013324]
[1743138001249,0.02604177,86478.0,86477.0,0.00013324]
[1743138001699,0.0028911,86478.0,86454.0,1e-08]
[1743138001904,0.5523653,86464.0,86447.0,0.55048]
[1743138002074,0.02296762,86455.0,86447.0,0.55048]
[1743138002292,0.08309182,86454.0,86447.0,0.55048]
[1743138002635,0.38309182,86454.0,86437.0,1e-08]
[1743138002851,0.3,86446.0,86437.0,1e-08]
[1743138003215,0.00289219,86445.0,86426.0,1e-08]
[1743138004156,0.00289219,86445.0,86426.0,0.00013325]
[1743138004367,0.02336211,86427.0,86426.0,0.00013324]
[1743138004559,0.51144211,86427.0,86426.0,0.00013324]
[1743138004760,0.59304211,86427.0,86426.0,0.00013324]
[1743138006612,0.60461211,86427.0,86426.0,0.00013324]
[1743138006815,0.62961211,86427.0,86426.0,0.00013324]
[1743138007212,0.63461211,86427.0,86426.0,0.00013324]
[1743138007425,0.63961211,86427.0,86426.0,0.00013324]
[1743138007986,0.78163658,86427.0,86426.0,0.00013324]
[1743138008189,0.722981,86426.0,86411.0,0.002]
[1743138008404,0.881354,86426.0,86411.0,0.002]
[1743138008827,0.865874,86426.0,86411.0,0.002]
[1743138009440,0.92096452,86426.0,86411.0,0.002]
[1743138010350,0.011572,86412.0,86411.0,0.002]
[1743138010552,0.65421526,86412.0,86411.0,0.002]
[1743138010760,0.651321,86412.0,86411.0,0.002]
[1743138011315,0.311574,86399.0,86381.0,0.002]
[1743138011521,0.00289443,86398.0,86390.0,0.00061331]
[1743138011724,0.3,86396.0,86390.0,0.00061331]
[1743138012054,0.0366853,86395.0,86390.0,0.00061331]
[1743138012726,0.01816043,86394.0,86390.0,0.00061331]
[1743138012935,0.00289455,86393.0,86390.0,0.00061331]
[1743138013104,0.091575,86391.0,86390.0,0.00061331]
[1743138013305,0.09446968,86391.0,86390.0,0.00061331]
[1743138013771,0.39446968,86391.0,86390.0,0.00061331]
[1743138013901,0.38,86391.0,86390.0,0.00061331]
[1743138014103,0.416575,86391.0,86390.0,0.00061331]
[1743138014507,0.41,86391.0,86390.0,0.00061331]
[1743138014699,0.025,86387.0,86381.0,0.002]
[1743138014926,0.00289483,86386.0,86381.0,0.00213335]
[1743138015129,0.3,86390.0,86381.0,0.00213335]
[1743138015325,0.00289448,86389.0,86381.0,0.00213335]
[1743138016332,0.025,86387.0,86381.0,0.00213335]
[1743138016592,0.00289471,86386.0,86381.0,0.00213335]
[1743138016966,0.3,86382.0,86381.0,0.00213335]
[1743138017760,0.35489109,86382.0,86381.0,0.00213335]
[1743138018760,0.56125462,86382.0,86381.0,0.00213335]
[1743138019356,0.56625462,86382.0,86381.0,0.00213335]
[1743138019999,0.58962849,86382.0,86381.0,0.00213335]
[1743138023108,0.58800449,86382.0,86381.0,0.00213335]
[1743138023315,0.76462849,86382.0,86381.0,0.00213335]
[1743138023796,0.75962849,86382.0,86381.0,0.00213335]
[1743138023998,0.76462849,86382.0,86381.0,0.00213335]
[1743138024201,0.75962849,86382.0,86381.0,0.00213335]
[1743138024341,0.60962849,86382.0,86381.0,0.00213335]
[1743138024545,0.60597156,86382.0,86381.0,0.00213335]
[1743138024744,0.09277156,86382.0,86371.0,0.0473]
[1743138024953,0.3,86380.0,86371.0,0.0473]
[1743138025159,0.3,86378.0,86361.0,0.00293338]
[1743138025361,0.3,86370.0,86361.0,0.00293338]
[1743138025567,0.00289495,86369.0,86361.0,0.00293338]
[1743138026201,0.05489109,86368.0,86361.0,0.00293338]
[1743138026805,0.3,86366.0,86361.0,0.00293338]
[1743138027005,0.0028951,86365.0,86361.0,0.00293338]
[1743138028229,0.0078951,86365.0,86361.0,0.00293338]
[1743138028795,0.02120747,86364.0,86361.0,0.00293338]
[1743138029000,0.38529539,86363.0,86361.0,0.00293338]
[1743138029200,0.3824,86363.0,86361.0,0.00293338]
[1743138029445,0.325,86362.0,86361.0,0.00293338]
[1743138029854,0.325,86362.0,86333.0,0.0481]
[1743138029855,0.025,86357.0,86333.0,0.0481]
[1743138030054,0.325,86357.0,86351.0,0.0001334]
[1743138030399,0.00289594,86356.0,86351.0,0.0001334]
[1743138030547,0.04606396,86356.0,86351.0,0.0001334]
[1743138030895,0.02106396,86356.0,86351.0,0.0001334]
[1743138031019,0.04606396,86356.0,86351.0,0.0001334]
[1743138031220,0.02120747,86355.0,86351.0,0.0001334]
[1743138031436,0.002896,86354.0,86351.0,0.0001334]
[1743138032883,0.02120747,86353.0,86351.0,0.0001334]
[1743138033088,0.002896,86352.0,86351.0,0.0001334]
[1743138033331,0.3,86352.0,86351.0,0.0001334]
[1743138033535,0.48824,86352.0,86351.0,0.0001334]
[1743138034101,0.02120747,86353.0,86351.0,0.0476334]
[1743138034304,0.20940747,86352.0,86351.0,0.0476334]
[1743138034914,0.21440747,86352.0,86351.0,0.0476334]
[1743138035335,0.1882,86352.0,86351.0,0.0476334]
[1743138035742,0.1882,86352.0,86351.0,0.04763341]
[1743138035743,0.18824,86352.0,86351.0,0.04763341]
[1743138036133,0.18824,86352.0,86351.0,0.05921341]
[1743138036361,0.18824,86352.0,86351.0,0.04763341]
[1743138036715,0.19224,86352.0,86351.0,0.04763341]
[1743138036911,0.18824,86352.0,86351.0,0.04763341]
[1743138037160,0.18824,86352.0,86351.0,0.04780251]
[1743138037333,0.19024,86352.0,86351.0,0.04780251]
[1743138037938,0.002,86352.0,86351.0,0.13888251]
[1743138038541,0.02016553,86352.0,86351.0,0.12730251]
[1743138039373,0.20836553,86352.0,86351.0,0.13888251]
[1743138039948,0.20836553,86352.0,86351.0,0.12730251]
[1743138041563,0.20836553,86352.0,86351.0,0.37049451]
[1743138041675,0.02016553,86352.0,86351.0,0.37049451]
[1743138042237,0.02016553,86352.0,86351.0,0.13888251]
[1743138042446,0.02016553,86352.0,86351.0,0.37049451]
[1743138043666,0.01816553,86352.0,86351.0,0.12730251]
[1743138044081,0.01916553,86352.0,86351.0,0.12730251]
[1743138044629,0.01916553,86352.0,86351.0,0.00030251]
[1743138044870,0.00389536,86352.0,86351.0,0.00030251]
[1743138045109,0.30389536,86352.0,86351.0,0.0003025]
[1743138045269,0.301,86352.0,86351.0,0.0003025]
[1743138046662,0.18916,86352.0,86351.0,0.0003025]
[1743138047351,0.18816,86352.0,86351.0,0.0003025]
[1743138047554,0.19216,86352.0,86351.0,0.0003025]
[1743138049376,0.21032693,86352.0,86351.0,0.0003025]
[1743138049741,0.21032693,86352.0,86351.0,0.00030251]
[1743138050870,0.20632693,86352.0,86351.0,0.00030251]
[1743138051436,0.21032693,86352.0,86351.0,0.00030251]
[1743138053878,0.21032693,86352.0,86351.0,0.0003025]
[1743138054272,0.02216693,86352.0,86351.0,0.0003025]
[1743138054493,0.21028693,86352.0,86351.0,0.0003025]
[1743138054697,0.19212,86352.0,86351.0,0.0003025]
[1743138054915,0.004,86352.0,86351.0,0.0003025]
[1743138055047,0.19212,86352.0,86351.0,0.0003025]
[1743138055465,0.21353833,86352.0,86351.0,0.0003025]
[1743138056722,0.21353833,86352.0,86351.0,0.00030251]
[1743138058015,0.20953833,86352.0,86351.0,0.24349451]
[1743138058219,0.18812,86352.0,86351.0,0.00030251]
[1743138058600,0.19112,86352.0,86351.0,0.00030251]
[1743138059031,0.20928583,86352.0,86351.0,0.00030251]
[1743138060101,0.20628583,86352.0,86351.0,0.00030251]
[1743138060311,0.20628583,86352.0,86348.0,0.30018151]
[1743138060513,0.02016583,86352.0,86351.0,0.243192]
[1743138061268,0.01816583,86352.0,86351.0,0.2433613]
[1743138061703,0.02050443,86352.0,86351.0,0.2433613]
[1743138061897,0.01850443,86352.0,86351.0,0.2433613]
[1743138062107,0.01850443,86352.0,86351.0,0.41935979]
[1743138062311,0.10153288,86355.0,86354.0,0.248184]
[1743138062519,0.0753,86415.0,86386.0,0.243093]
[1743138062663,0.16849415,86439.0,86386.0,0.243093]
[1743138062664,0.0454,86427.0,86386.0,1.32115149]
[1743138062871,0.10013308,86387.0,86386.0,1.73540913]
[1743138063063,0.10013308,86387.0,86386.0,1.74040913]
[1743138063296,0.00013308,86387.0,86386.0,1.81870913]
[1743138063955,0.00013308,86387.0,86386.0,1.81670913]
[1743138064183,0.0181541,86421.0,86420.0,0.011571]
[1743138064352,0.0003384,86439.0,86428.0,0.25751685]
[1743138064559,0.0003384,86439.0,86428.0,0.78867449]
[1743138064941,0.0003384,86439.0,86428.0,1.09367449]
[1743138064942,0.00244485,86429.0,86428.0,1.09367449]
[1743138065311,0.00244485,86429.0,86428.0,1.08867449]
[1743138066081,0.00244485,86429.0,86428.0,0.78867449]
[1743138066287,0.00244485,86429.0,86428.0,0.90293213]
[1743138067552,0.00244485,86429.0,86428.0,0.43244085]
[1743138067790,0.00244485,86429.0,86428.0,0.44401085]
[1743138068001,0.00244485,86429.0,86428.0,0.4179]
[1743138068394,0.00244485,86429.0,86418.0,0.4179]
[1743138068395,0.30244485,86429.0,86418.0,0.4179]
[1743138068592,0.49040485,86429.0,86418.0,0.4179]
[1743138069562,0.3,86427.0,86418.0,0.4179]
[1743138069736,0.3,86427.0,86421.0,0.011571]
[1743138069737,0.01815197,86427.0,86421.0,0.011571]
[1743138069885,0.01815197,86427.0,86418.0,0.429471]
[1743138070099,0.01815197,86427.0,86422.0,0.01454085]
[1743138070684,0.01815197,86427.0,86423.0,0.01157]
[1743138071085,0.01815197,86427.0,86419.0,0.01454085]
[1743138071203,0.01815197,86427.0,86413.0,0.55112]
[1743138071407,0.18792,86426.0,86419.0,0.4179]
[1743138073758,0.30289281,86425.0,86419.0,0.4179]
[1743138073961,0.3806,86425.0,86408.0,0.55104]
[1743138074289,0.3,86417.0,86408.0,0.55104]
[1743138074509,0.3,86417.0,86399.0,0.551]
[1743138074650,0.3,86408.0,86399.0,0.551]
[1743138074821,0.18788,86407.0,86399.0,0.551]
[1743138075227,0.02330535,86412.0,86408.0,0.243031]
[1743138075447,0.18788,86411.0,86405.0,0.011573]
[1743138075856,0.18788,86411.0,86409.0,0.011572]
[1743138076235,0.18788,86411.0,86410.0,0.4179]
[1743138076393,0.001,86425.0,86417.0,0.011571]
[1743138076604,0.18788,86424.0,86414.0,0.011572]
[1743138077009,0.003,86417.0,86414.0,0.243014]
[1743138077206,0.003,86417.0,86414.0,0.429472]
[1743138077409,0.18788,86424.0,86414.0,0.4179]
[1743138077612,0.18788,86424.0,86403.0,0.4179]
[1743138077812,0.3114511,86413.0,86403.0,0.4179]
[1743138078344,0.3114511,86413.0,86405.0,0.011573]
[1743138078548,0.02119978,86412.0,86409.0,0.011572]
[1743138078750,0.02119978,86412.0,86410.0,0.429472]
[1743138078900,0.02119978,86412.0,86411.0,0.011572]
[1743138079138,0.20907978,86412.0,86411.0,0.429472]
[1743138079336,0.02119978,86412.0,86411.0,0.429472]
[1743138079538,0.18784,86414.0,86413.0,0.011572]
[1743138079756,0.18784,86414.0,86413.0,0.4179]
[1743138079940,0.18784,86414.0,86400.0,0.4179]
[1743138080148,0.3114511,86410.0,86400.0,0.4179]
[1743138080355,0.30289354,86409.0,86380.0,0.4179]
[1743138080753,0.3114511,86390.0,86380.0,0.4179]
[1743138080959,0.1907342,86389.0,86380.0,0.4179]
[1743138081169,0.1907342,86389.0,86358.0,0.011579]
[1743138081347,0.00289439,86388.0,86373.0,0.551]
[1743138081487,0.01815884,86387.0,86373.0,0.551]
[1743138082106,0.02313279,86381.0,86373.0,0.6061]
[1743138082377,0.02313279,86381.0,86374.0,0.243128]
[1743138082595,0.18784,86380.0,86373.0,0.61781008]
[1743138082719,0.18784,86380.0,86373.0,0.60623308]
[1743138083170,0.05515527,86379.0,86373.0,0.60623308]
[1743138083326,0.18784,86378.0,86373.0,0.60623308]
[1743138083727,0.18784,86378.0,86373.0,0.55113308]
[1743138083940,0.01815936,86377.0,86373.0,0.55113308]
[1743138084548,0.05515527,86377.0,86373.0,0.55113308]
[1743138087189,0.02119978,86376.0,86373.0,0.55113308]
[1743138088193,0.03936055,86376.0,86373.0,0.55113308]
[1743138088388,0.02119978,86375.0,86373.0,0.60624639]
[1743138088594,0.02119978,86375.0,86373.0,0.55113308]
[1743138089177,0.02409419,86375.0,86373.0,0.55113308]
[1743138089782,0.02119978,86374.0,86373.0,0.55113308]
[1743138090394,0.02119978,86374.0,86373.0,0.00013308]
[1743138091219,0.05815527,86374.0,86373.0,0.00013308]
[1743138092603,0.08128574,86374.0,86373.0,0.00013308]
[1743138092807,0.08418072,86374.0,86373.0,0.00013308]
[1743138093014,0.08128574,86374.0,86373.0,0.00013308]
[1743138096941,0.0841808,86374.0,86373.0,0.00013308]
[1743138098379,0.0841808,86374.0,86373.0,0.00030218]
[1743138098723,0.0841808,86374.0,86373.0,0.00014605]
[1743138098923,0.40234472,86374.0,86373.0,0.00014605]
[1743138099140,0.39944966,86374.0,86373.0,0.00014605]
[1743138100442,0.58724966,86374.0,86373.0,0.00014605]
[1743138103588,0.58424966,86374.0,86373.0,0.00014605]
[1743138104287,0.58624966,86374.0,86373.0,0.00014605]
[1743138104711,0.56808574,86374.0,86373.0,0.00014605]
[1743138105294,0.56608574,86374.0,86373.0,0.00014605]
[1743138105718,0.56908574,86374.0,86373.0,0.00014605]
[1743138106691,0.64508574,86374.0,86373.0,0.00014605]
[1743138109124,0.66325069,86374.0,86373.0,0.00014605]
[1743138110234,0.95317869,86374.0,86373.0,0.00014605]
[1743138110460,0.3,86369.0,86351.0,0.0001693]
[1743138110666,0.3,86360.0,86351.0,0.0001693]
[1743138110822,0.00289549,86359.0,86351.0,0.0001693]
[1743138111208,0.01816709,86358.0,86351.0,0.0001693]
[1743138111408,0.00289571,86357.0,86351.0,0.0001693]
[1743138112067,0.3,86355.0,86351.0,0.0001693]
[1743138112298,0.00289573,86354.0,86351.0,0.0001693]
[1743138112972,0.3,86355.0,86351.0,0.0001693]
[1743138113182,0.01816709,86358.0,86351.0,0.0001693]
[1743138113755,0.02359161,86367.0,86353.0,0.02612085]
[1743138113934,0.02331308,86372.0,86365.0,0.011578]
[1743138114114,0.0001333,86374.0,86365.0,0.02611885]
[1743138114326,0.18768,86367.0,86365.0,0.01454085]
[1743138114532,0.18768,86367.0,86365.0,0.01254085]
[1743138115782,0.18868,86367.0,86364.0,0.5514]
[1743138116195,0.18768,86367.0,86364.0,0.5514]
[1743138116390,0.18768,86367.0,86365.0,0.243153]
[1743138116710,0.18868,86367.0,86365.0,0.1049291]
[1743138116896,0.001,86367.0,86364.0,0.5514]
[1743138117200,0.18764,86366.0,86364.0,0.562978]
[1743138117444,0.18764,86366.0,86364.0,0.5514]
[1743138117856,0.18764,86366.0,86365.0,0.25769385]
[1743138118062,0.20580328,86366.0,86365.0,0.01454085]
[1743138118993,0.20580328,86366.0,86365.0,0.24611585]
[1743138119197,0.20580328,86366.0,86365.0,0.25769385]
[1743138119393,0.01816328,86366.0,86365.0,0.25769385]
[1743138119581,0.01816328,86366.0,86365.0,0.61290913]
[1743138121082,0.01816328,86366.0,86365.0,0.01454085]
[1743138121289,0.01816328,86366.0,86364.0,0.5514]
[1743138122109,0.01816328,86366.0,86365.0,0.0001692]
[1743138122337,0.04181857,86366.0,86365.0,0.0001692]
[1743138123383,0.01816328,86366.0,86365.0,0.0001692]
[1743138124727,0.00289476,86366.0,86365.0,0.0001692]
[1743138124878,0.02263801,86368.0,86365.0,0.0001692]
[1743138125663,0.00289487,86367.0,86365.0,0.0001692]
[1743138125875,0.02263801,86368.0,86365.0,0.0001692]
[1743138127965,0.00289496,86367.0,86365.0,0.0001692]
[1743138128959,0.02106028,86367.0,86365.0,0.0001692]
[1743138129161,0.3776,86366.0,86365.0,0.0001692]
[1743138130905,0.3,86366.0,86365.0,0.0001692]
[1743138131122,0.49148,86366.0,86365.0,0.0001692]
[1743138131666,0.48748,86366.0,86365.0,0.0001692]
[1743138132089,0.49048,86366.0,86365.0,0.0001692]
[1743138133746,0.48748,86366.0,86365.0,0.0001692]
[1743138134275,0.18944,86366.0,86365.0,0.0001692]
[1743138134479,0.19233511,86366.0,86365.0,0.0001692]
[1743138135445,0.49233511,86366.0,86365.0,0.0001692]
[1743138135670,0.48944,86366.0,86365.0,0.0001692]
[1743138136683,0.584118,86366.0,86365.0,0.0001692]
[1743138136832,0.654818,86366.0,86365.0,0.0001692]
[1743138137258,0.657818,86366.0,86365.0,0.0001692]
[1743138137677,0.65098532,86366.0,86365.0,0.0001692]
[1743138137885,0.68098532,86366.0,86365.0,0.0001692]
[1743138138063,0.67798532,86366.0,86365.0,0.0001692]
[1743138138261,0.68298532,86366.0,86365.0,0.0001692]
[1743138139882,0.77798532,86366.0,86365.0,0.0001692]
[1743138140376,0.78298532,86366.0,86365.0,0.0001692]
[1743138142510,0.66640732,86366.0,86365.0,0.0001692]
[1743138142713,0.45396732,86366.0,86365.0,0.0001692]
[1743138142923,0.64132732,86366.0,86365.0,0.0001692]
[1743138143141,0.6627078,86366.0,86365.0,0.0001692]
[1743138143775,0.6577078,86366.0,86365.0,0.0001692]
[1743138143983,0.64132732,86366.0,86365.0,0.0001692]
[1743138144192,0.40626732,86366.0,86365.0,0.0001692]